fUSD/lending_fUSD_20240518
["ID","MTS","AMOUNT","RATE_DAILY","PERIOD"]
[327340884,1715998242268,-168.24161346,0.00026315,2]
[327340885,1715998242279,-722.19451679,0.000269,2]
[327340886,1715998242289,-722.19451662,0.000269,2]
[327340887,1715998242300,-722.19451662,0.000269,2]
[327340888,1715998242310,-722.19451662,0.000269,2]
[327340889,1715998242321,-722.19451662,0.000269,2]
[327340890,1715998242333,-722.19451662,0.000269,2]
[327340891,1715998242344,-722.19451662,0.000269,2]
[327340892,1715998242354,-722.19451662,0.000269,2]
[327340893,1715998242364,-722.19451662,0.000269,2]
[327340894,1715998242375,-722.19451662,0.000269,2]
[327340895,1715998242385,-722.19451662,0.000269,2]
[327340896,1715998242396,-722.19451662,0.000269,2]
[327340897,1715998242407,-722.19451662,0.000269,2]
[327340898,1715998242417,-722.19451662,0.000269,2]
[327340899,1715998242428,-722.19451662,0.000269,2]
[327340900,1715998242438,-722.19451662,0.000269,2]
[327340901,1715998242448,-722.19451662,0.000269,2]
[327340902,1715998242459,-722.19451662,0.000269,2]
[327340903,1715998242469,-722.19451662,0.000269,2]
[327340904,1715998242479,-449.74,0.00026921,2]
[327340905,1715998242490,-722.19451662,0.0002695,2]
[327340906,1715998242504,-1742.60595667,0.00027,2]
[327340907,1715998242514,-155.0,0.00027,4]
[327340908,1715998242525,-2000.0,0.00027,2]
[327340909,1715998242535,-2000.0,0.0002701,2]
[327340910,1715998242545,-2000.0,0.0002702,2]
[327340911,1715998242556,-2000.0,0.0002703,2]
[327340912,1715998242567,-2000.0,0.0002704,2]
[327340913,1715998242579,-3332.366491,0.0002705,2]
[327340914,1715998242591,-354.12,0.0002709,2]
[327340915,1715998242761,-150.20476875,0.0002739,2]
[327340916,1715998242775,-150.65,0.0002739,2]
[327340917,1715998242784,-150.65,0.0002739,2]
[327340918,1715998242793,-150.65,0.0002739,2]
[327340919,1715998242802,-150.65,0.0002739,2]
[327340920,1715998242812,-150.65,0.0002739,2]
[327340921,1715998242821,-150.0,0.00027397,2]
[327340922,1715998242830,-4282.14,0.00027397,10]
[327340923,1715998242841,-839.7399115,0.000274,2]
[327340924,1715998242850,-2000.0,0.000274,2]
[327340925,1715998242859,-180.0,0.0002744,20]
[327340926,1715998242868,-162.91,0.00027494,120]
[327340927,1715998242878,-155.0,0.0002755,30]
[327340928,1715998242887,-151.25,0.00027641,2]
[327340929,1715998242897,-175.67,0.000277,2]
[327340930,1715998242907,-210.83223687,0.00027911,2]
[327340931,1715998242917,-150.0,0.00028118,2]
[327340932,1715998242927,-150.0,0.000283,5]
[327340933,1715998242936,-1119.57962758,0.0002842,2]
[327340934,1715998242946,-152.0,0.000285,30]
[327340935,1715998242955,-1005.0,0.000286,2]
[327340936,1715998242964,-1000.0,0.00028768,10]
[327340937,1715998242975,-500.0,0.00028768,2]
[327340938,1715998242984,-150.0,0.000288,6]
[327340939,1715998242993,-150.0,0.00028839,2]
[327340940,1715998243003,-1000.0,0.000289,2]
[327340941,1715998243012,-397.8794,0.00028911,30]
[327340943,1715998243021,-160.0,0.00028911,30]
[327340944,1715998243031,-1002.1539431,0.00028911,2]
[327340946,1715998243041,-150.65,0.0002899,2]
[327340947,1715998243051,-150.65,0.0002899,2]
[327340948,1715998243060,-150.65,0.0002899,2]
[327340949,1715998243069,-353965.74201471,0.00029,2]
[327340952,1715998243186,-225953.5209886,0.00029,2]
[327340953,1715998243196,-5000.0,0.00029,2]
[327340954,1715998243205,-1481.05847419,0.00029,2]
[327340955,1715998243214,-293.88203282,0.00029,2]
[327340956,1715998243223,-2759.56450673,0.00029,2]
[327340957,1715998243232,-645.33591283,0.00029,7]
[327340958,1715998243241,-445.01433264,0.00029,2]
[327340959,1715998243251,-500000.0,0.00029,2]
[327340960,1715998243260,-1012.08,0.00029,30]
[327340961,1715998243269,-179.424586,0.00029,7]
[327340962,1715998243279,-151.0,0.00029,7]
[327340963,1715998243288,-151.0,0.00029,7]
[327340964,1715998243297,-151.0,0.00029,7]
[327340965,1715998243306,-151.0,0.00029,7]
[327340966,1715998243315,-151.0,0.00029,7]
[327340967,1715998243326,-151.0,0.00029,7]
[327340968,1715998243335,-151.0,0.00029,7]
[327340969,1715998243344,-151.0,0.00029,7]
[327340970,1715998243353,-151.0,0.00029,7]
[327340971,1715998243362,-153.401548,0.00029,7]
[327340972,1715998243371,-151.482256,0.00029,7]
[327340973,1715998243380,-150.0,0.000293,6]
[327340974,1715998243389,-354.12,0.00029354,2]
[327340976,1715998243399,-150.0,0.0002956,2]
[327340978,1715998243408,-3944.75297171,0.00029595,2]
[327340980,1715998243417,-150.0,0.000298,6]
[327340982,1715998243426,-12352.62180931,0.00029838,2]
[327340984,1715998243436,-150.65,0.0002999,2]
[327340986,1715998243445,-150.0,0.00029999,10]
[327340988,1715998243454,-150.0,0.00029999,10]
[327340990,1715998243463,-34005.34849633,0.0003,4]
[327340992,1715998243472,-8120.89362315,0.0003,2]
[327340993,1715998243481,-27692.05917956,0.0003,4]
[327340994,1715998243491,-1391.80767982,0.0003,60]
[327340995,1715998243505,-39211.5693224,0.0003,30]
[327340996,1715998243514,-483.13349757,0.0003,2]
[327340997,1715998243524,-151.0,0.0003,7]
[327340998,1715998243533,-166.478055,0.0003,7]
[327340999,1715998243543,-151.0,0.0003,7]
[327341000,1715998243552,-151.0,0.0003,7]
[327341001,1715998243562,-151.0,0.0003,7]
[327341002,1715998243571,-151.0,0.0003,7]
[327341003,1715998243582,-151.0,0.0003,7]
[327341004,1715998243591,-151.0,0.0003,7]
[327341005,1715998243599,-151.0,0.0003,7]
[327341006,1715998243609,-151.0,0.0003,7]
[327341007,1715998243618,-151.0,0.0003,7]
[327341008,1715998243627,-151.0,0.0003,7]
[327341009,1715998243637,-151.0,0.0003,7]
[327341010,1715998243646,-151.0,0.0003,7]
[327341011,1715998243655,-151.0,0.0003,2]
[327341012,1715998243665,-216.983149,0.0003,7]
[327341013,1715998243675,-151.0,0.0003,7]
[327341014,1715998243684,-151.0,0.0003,7]
[327341015,1715998243693,-151.0,0.0003,7]
[327341016,1715998243702,-158.04094423,0.0003015,2]
[327341017,1715998243711,-151.0,0.00030222,2]
[327341018,1715998243721,-150.0,0.00030281,2]
[327341019,1715998243731,-150.0,0.000303,6]
[327341020,1715998243740,-2262.53949,0.00030446,2]
[327341021,1715998243750,-200.0,0.00030702,2]
[327341022,1715998243759,-1000.0,0.00030702,10]
[327341023,1715998243768,-500.0,0.00030702,2]
[327341024,1715998243777,-200.0,0.00030702,2]
[327341025,1715998243786,-302.0,0.0003073,4]
[327341026,1715998243795,-150.0,0.000308,6]
[327341027,1715998243804,-150.0,0.00031002,2]
[327341028,1715998243814,-604.0,0.00031246,7]
[327341029,1715998243823,-150.0,0.000313,7]
[327341031,1715998243832,-152.35,0.00031546,2]
[327341033,1715998243840,-150.0,0.00031606,2]
[327341035,1715998243849,-354.12,0.00031618,2]
[327341037,1715998243858,-150.0,0.0003167,2]
[327341039,1715998243867,-150.0,0.00031723,2]
[327341041,1715998243877,-150.0,0.00031757,2]
[327341042,1715998243886,-150.0,0.0003178,2]
[327341043,1715998243895,-163.019942,0.000318,7]
[327341044,1715998243905,-150.0,0.000318,7]
[327341045,1715998243915,-150.0,0.00031829,2]
[327341046,1715998243924,-150.0,0.00031847,2]
[327341047,1715998243934,-150.0,0.00031868,2]
[327341048,1715998243945,-150.0,0.00031874,2]
[327341049,1715998243955,-150.0,0.000319,2]
[327341050,1715998243965,-151.0,0.00031948,7]
[327341051,1715998243976,-151.0,0.00031948,7]
[327341052,1715998243986,-151.0,0.00031948,7]
[327341053,1715998243995,-163.011796,0.00031948,7]
[327341054,1715998244004,-163.011796,0.00031948,7]
[327341055,1715998244014,-150.0,0.00031963,2]
[327341056,1715998244023,-150.0,0.00031969,2]
[327341057,1715998244032,-150.0,0.00031973,2]
[327341058,1715998244041,-150.0,0.00031981,2]
[327341059,1715998244050,-150.0,0.00031999,10]
[327341060,1715998244059,-150.0,0.00031999,2]
[327341061,1715998244068,-476.07826217,0.00032,4]
[327341062,1715998244078,-20000.0,0.00032,60]
[327341063,1715998244088,-2101.91,0.00032,20]
[327341064,1715998244098,-150.0,0.00032018,2]
[327341065,1715998244107,-150.0,0.00032026,2]
[327341066,1715998244116,-150.0,0.00032036,2]
[327341067,1715998244125,-150.0,0.00032056,2]
[327341069,1715998244134,-150.0,0.00032073,2]
[327341070,1715998244143,-150.0,0.00032078,2]
[327341072,1715998244153,-300.0,0.00032086,2]
[327341074,1715998244162,-150.0,0.00032103,2]
[327341076,1715998244171,-150.0,0.00032107,2]
[327341078,1715998244181,-150.0,0.00032112,2]
[327341080,1715998244190,-150.0,0.00032112,2]
[327341082,1715998244202,-150.0,0.00032119,2]
[327341084,1715998244211,-150.0,0.0003212,2]
[327341086,1715998244220,-150.0,0.00032145,2]
[327341088,1715998244230,-162.05481209,0.00032164,2]
[327341090,1715998244239,-150.0,0.00032167,2]
[327341091,1715998244248,-150.0,0.00032168,2]
[327341092,1715998244257,-1500.0,0.00032173,2]
[327341093,1715998244267,-150.0,0.00032182,2]
[327341094,1715998244275,-150.0,0.00032188,2]
[327341095,1715998244285,-1500.0,0.00032205,2]
[327341096,1715998244294,-150.0,0.0003221,2]
[327341097,1715998244303,-150.0,0.00032221,2]
[327341098,1715998244314,-150.0,0.00032223,2]
[327341099,1715998244324,-1500.0,0.00032234,2]
[327341100,1715998244334,-150.0,0.00032239,2]
[327341101,1715998244343,-1053.11143748,0.00032242,5]
[327341102,1715998244353,-1087.24326088,0.00032242,5]
[327341103,1715998244363,-150.0,0.00032257,2]
[327341104,1715998244372,-150.0,0.0003226,2]
[327341105,1715998244381,-150.0,0.00032273,2]
[327341106,1715998244390,-150.0,0.00032278,2]
[327341107,1715998244399,-150.0,0.00032281,2]
[327341108,1715998244408,-150.0,0.00032282,2]
[327341109,1715998244417,-150.0,0.0003229,2]
[327341110,1715998244427,-1500.0,0.00032297,2]
[327341111,1715998244436,-1500.0,0.00032298,2]
[327341112,1715998244445,-150.0,0.000323,7]
[327341113,1715998244455,-150.0,0.000323,7]
[327341114,1715998244464,-150.0,0.00032305,2]
[327341115,1715998244474,-150.0,0.00032308,2]
[327341116,1715998244483,-150.0,0.00032308,2]
[327341117,1715998244492,-150.0,0.00032334,2]
[327341118,1715998244506,-150.0,0.00032335,2]
[327341119,1715998244515,-300.0,0.00032342,2]
[327341120,1715998244524,-1910.25115006,0.00032344,2]
[327341121,1715998244534,-150.0,0.00032345,2]
[327341122,1715998244544,-1500.0,0.00032358,2]
[327341123,1715998244554,-1500.0,0.0003236,2]
[327341124,1715998244563,-1500.0,0.00032361,2]
[327341125,1715998244572,-150.0,0.00032361,2]
[327341126,1715998244583,-1500.0,0.00032364,2]
[327341127,1715998244592,-150.0,0.00032368,2]
[327341128,1715998244601,-150.0,0.00032372,2]
[327341129,1715998244610,-150.0,0.00032378,2]
[327341130,1715998244619,-150.0,0.00032386,2]
[327341131,1715998244628,-150.0,0.00032389,2]
[327341132,1715998244637,-150.0,0.00032398,2]
[327341133,1715998244646,-300.0,0.00032403,2]
[327341134,1715998244656,-150.0,0.00032403,2]
[327341135,1715998244665,-797.55205176,0.00032406,2]
[327341136,1715998244675,-1500.0,0.00032407,2]
[327341137,1715998244684,-1500.0,0.00032411,2]
[327341138,1715998244694,-150.0,0.00032413,2]
[327341139,1715998244703,-1500.0,0.0003242,2]
[327341140,1715998244712,-1500.0,0.00032423,2]
[327341141,1715998244721,-150.0,0.00032424,2]
[327341142,1715998244730,-1500.0,0.00032428,2]
[327341143,1715998244740,-150.0,0.00032431,2]
[327341144,1715998244750,-150.0,0.00032438,2]
[327341145,1715998244759,-150.0,0.00032444,2]
[327341146,1715998244768,-150.0,0.00032452,2]
[327341147,1715998244778,-150.0,0.00032458,2]
[327341148,1715998244787,-150.0,0.00032459,2]
[327341149,1715998244796,-150.0,0.00032478,2]
[327341150,1715998244806,-150.0,0.00032478,2]
[327341151,1715998244816,-1500.0,0.00032486,2]
[327341152,1715998244825,-150.0,0.00032487,2]
[327341153,1715998244835,-1500.0,0.00032488,2]
[327341154,1715998244844,-300.0,0.00032493,2]
[327341155,1715998244853,-1500.0,0.00032496,2]
[327341156,1715998244863,-150.0,0.00032511,2]
[327341157,1715998244872,-150.0,0.00032515,2]
[327341158,1715998244882,-150.0,0.00032529,2]
[327341159,1715998244891,-1500.0,0.00032535,2]
[327341160,1715998244901,-150.0,0.00032543,2]
[327341161,1715998244910,-150.0,0.00032548,2]
[327341162,1715998244919,-150.0,0.00032562,2]
[327341163,1715998244928,-150.0,0.00032563,2]
[327341164,1715998244938,-1500.0,0.00032566,2]
[327341165,1715998244948,-1500.0,0.0003257,2]
[327341166,1715998244957,-1500.0,0.00032574,2]
[327341167,1715998244966,-150.0,0.00032591,2]
[327341168,1715998244975,-150.0,0.00032602,2]
[327341169,1715998244985,-150.0,0.00032605,2]
[327341170,1715998244995,-1500.0,0.0003261,2]
[327341171,1715998245004,-1500.0,0.00032618,2]
[327341172,1715998245014,-150.0,0.00032622,2]
[327341173,1715998245023,-150.0,0.00032623,2]
[327341174,1715998245033,-150.0,0.00032628,2]
[327341175,1715998245042,-150.0,0.00032633,2]
[327341176,1715998245051,-300.0,0.00032634,2]
[327341177,1715998245061,-200.0,0.00032635,2]
[327341178,1715998245071,-1000.0,0.00032635,10]
[327341179,1715998245080,-500.0,0.00032635,2]
[327341180,1715998245090,-1500.0,0.00032646,2]
[327341181,1715998245099,-150.0,0.00032648,2]
[327341182,1715998245109,-150.0,0.00032654,2]
[327341183,1715998245118,-1500.0,0.00032659,2]
[327341184,1715998245128,-1500.0,0.00032669,2]
[327341185,1715998245137,-1500.0,0.0003267,2]
[327341186,1715998245146,-1500.0,0.00032677,2]
[327341187,1715998245156,-150.0,0.00032679,2]
[327341188,1715998245166,-150.0,0.00032681,2]
[327341189,1715998245175,-150.0,0.00032685,2]
[327341190,1715998245185,-344.6361356,0.00032686,2]
[327341191,1715998245195,-150.0,0.00032689,2]
[327341192,1715998245204,-150.0,0.00032691,2]
[327341193,1715998245214,-1500.0,0.00032693,2]
[327341194,1715998245224,-300.0,0.00032697,2]
[327341195,1715998245234,-150.0,0.00032699,2]
[327341196,1715998245243,-300.0,0.00032701,2]
[327341197,1715998245253,-150.0,0.00032701,2]
[327341198,1715998245264,-150.0,0.00032702,2]
[327341199,1715998245273,-150.0,0.0003271,2]
[327341200,1715998245283,-150.0,0.00032718,2]
[327341201,1715998245292,-150.0,0.00032721,2]
[327341202,1715998245302,-1500.0,0.00032722,2]
[327341203,1715998245310,-150.0,0.00032732,2]
[327341204,1715998245320,-1500.0,0.00032744,2]
[327341205,1715998245330,-1500.0,0.00032747,2]
[327341206,1715998245340,-150.0,0.0003275,2]
[327341207,1715998245349,-150.0,0.00032754,2]
[327341208,1715998245359,-150.0,0.0003276,2]
[327341209,1715998245368,-150.0,0.00032762,2]
[327341210,1715998245377,-150.0,0.00032764,2]
[327341211,1715998245386,-1500.0,0.00032767,2]
[327341212,1715998245396,-342.07258104,0.00032771,2]
[327341213,1715998245406,-300.0,0.00032776,2]
[327341214,1715998245415,-1500.0,0.00032776,2]
[327341215,1715998245424,-150.0,0.00032782,2]
[327341216,1715998245434,-150.0,0.00032783,2]
[327341217,1715998245443,-150.0,0.00032784,2]
[327341218,1715998245452,-279.1586375,0.00032785,2]
[327341219,1715998245462,-150.0,0.00032785,2]
[327341220,1715998245472,-150.0,0.00032788,2]
[327341221,1715998245482,-150.0,0.00032794,2]
[327341222,1715998245492,-150.0,0.00032795,2]
[327341223,1715998245506,-1500.0,0.00032797,2]
[327341224,1715998245516,-150.0,0.000328,6]
[327341225,1715998245525,-160.0,0.000328,6]
[327341226,1715998245534,-160.0,0.000328,6]
[327341227,1715998245546,-150.0,0.000328,7]
[327341228,1715998245556,-150.0,0.000328,7]
[327341229,1715998245565,-1500.0,0.00032803,2]
[327341230,1715998245575,-150.0,0.00032806,2]
[327341231,1715998245584,-150.0,0.00032806,2]
[327341232,1715998245594,-150.0,0.00032809,2]
[327341233,1715998245603,-150.0,0.00032813,2]
[327341234,1715998245612,-150.0,0.00032814,2]
[327341235,1715998245621,-150.0,0.00032819,2]
[327341236,1715998245631,-150.0,0.00032825,2]
[327341237,1715998245640,-150.0,0.00032829,2]
[327341238,1715998245650,-150.0,0.00032829,2]
[327341239,1715998245659,-150.0,0.00032843,2]
[327341240,1715998245669,-150.0,0.00032848,2]
[327341241,1715998245678,-1500.0,0.00032848,2]
[327341242,1715998245687,-150.0,0.00032848,2]
[327341243,1715998245696,-150.0,0.00032848,2]
[327341244,1715998245818,-150.0,0.00032855,2]
[327341245,1715998245832,-1500.0,0.00032864,2]
[327341246,1715998245842,-150.0,0.00032868,2]
[327341247,1715998245851,-150.0,0.0003287,2]
[327341248,1715998245861,-1500.0,0.00032872,2]
[327341249,1715998245871,-150.0,0.00032872,2]
[327341250,1715998245880,-150.0,0.00032872,2]
[327341251,1715998245889,-150.0,0.00032872,2]
[327341252,1715998245899,-150.0,0.00032877,13]
[327341253,1715998245908,-150.0,0.00032882,2]
[327341254,1715998245917,-1500.0,0.00032885,2]
[327341255,1715998245926,-1500.0,0.00032886,2]
[327341256,1715998245935,-150.0,0.00032892,2]
[327341257,1715998245944,-150.0,0.00032896,2]
[327341258,1715998245953,-1450.49155329,0.00032898,2]
[327341259,1715998245962,-151.73532247,0.00032899,30]
[327341260,1715998245971,-359.73163642,0.000329,30]
[327341261,1715998245980,-362518.87791887,0.000329,30]
[327341262,1715998245989,-24087.59534171,0.000329,5]
[327341263,1715998245999,-176.41156166,0.000329,4]
[327341264,1715998246008,-295.81148259,0.000329,2]
[327341265,1715998246018,-671.47880364,0.000329,14]
[327341267,1715998246027,-2000.0,0.000329,2]
[327341268,1715998246036,-17092.1019487,0.00032908,2]
[327341269,1715998246045,-1375.7055967,0.00032908,2]
[327341270,1715998246054,-1813.2181568,0.00032931,2]
[327341271,1715998246064,-151.0,0.00032977,7]
[327341272,1715998246073,-151.0,0.00032977,7]
[327341273,1715998246082,-151.0,0.00032977,7]
[327341274,1715998246091,-151.0,0.00032977,7]
[327341275,1715998246101,-900.0,0.00033,34]
[327341276,1715998246111,-151.0,0.00033,7]
[327341277,1715998246120,-151.0,0.00033,7]
[327341278,1715998246129,-1666.545811,0.00033,2]
[327341279,1715998246138,-151.0,0.00033,7]
[327341281,1715998246147,-151.0,0.00033,7]
[327341284,1715998246156,-882.0,0.00033151,120]
[327341287,1715998246165,-405.9,0.00033151,120]
[327341289,1715998246174,-150.0,0.00033165,2]
[327341291,1715998246184,-3944.75297171,0.00033395,5]
[327341293,1715998246193,-151.0,0.00033395,7]
[327341294,1715998246202,-151.0,0.00033395,7]
[327341295,1715998246211,-151.0,0.00033395,7]
[327341296,1715998246220,-239.228169,0.00033395,7]
[327341297,1715998246229,-151.0,0.00033395,7]
[327341298,1715998246238,-309.64,0.00033396,2]
[327341299,1715998246247,-449.74,0.00033396,2]
[327341300,1715998246257,-868.43,0.00033638,2]
[327341301,1715998246266,-424.06,0.00033775,2]
[327341302,1715998246275,-354.12,0.00033882,2]
[327341303,1715998246284,-150.0,0.00033886,2]
[327341304,1715998246293,-900.0,0.00034,35]
[327341305,1715998246302,-151.25,0.00034475,2]
[327341306,1715998246311,-150.0,0.00034548,10]
[327341307,1715998246320,-166.5,0.00034606,2]
[327341308,1715998246330,-166.5,0.00034606,2]
[327341309,1715998246339,-166.5,0.00034606,2]
[327341310,1715998246348,-166.5,0.00034606,2]
[327341311,1715998246357,-166.5,0.00034606,2]
[327341312,1715998246366,-166.5,0.00034606,2]
[327341313,1715998246375,-166.5,0.00034606,2]
[327341314,1715998246385,-150.0,0.00034607,2]
[327341315,1715998246394,-913.0,0.00034759,20]
[327341316,1715998246403,-5000.0,0.00034765,3]
[327341317,1715998246412,-215.0,0.0003479,2]
[327341318,1715998246421,-29305.26259102,0.00035,4]
[327341319,1715998246431,-2229.69971431,0.00035,30]
[327341320,1715998246440,-900.0,0.00035,36]
[327341321,1715998246449,-418768.97302753,0.00035,30]
[327341322,1715998246458,-151.0,0.00035,7]
[327341323,1715998246467,-153.93007133,0.00035,4]
[327341324,1715998246476,-151.0,0.00035,7]
[327341325,1715998246485,-151.0,0.00035,7]
[327341326,1715998246495,-151.0,0.00035,7]
[327341327,1715998246509,-151.0,0.00035,7]
[327341328,1715998246518,-151.0,0.00035,7]
[327341329,1715998246527,-151.0,0.00035,7]
[327341330,1715998246536,-151.0,0.00035,7]
[327341331,1715998246546,-151.0,0.00035,7]
[327341332,1715998246555,-151.0,0.00035,7]
[327341333,1715998246564,-151.0,0.00035,7]
[327341334,1715998246573,-248.33137,0.00035,7]
[327341335,1715998246587,-151.0,0.00035,7]
[327341336,1715998246596,-151.0,0.00035,7]
[327341337,1715998246605,-151.0,0.00035,2]
[327341338,1715998246614,-151.0,0.00035,7]
[327341339,1715998246624,-151.0,0.00035,7]
[327341340,1715998246633,-151.0,0.00035,7]
[327341341,1715998246642,-151.0,0.00035,7]
[327341342,1715998246651,-163.011796,0.00035,7]
[327341343,1715998246660,-163.011796,0.00035,7]
[327341344,1715998246669,-174.76,0.00035288,15]
[327341345,1715998246679,-150.0,0.00035328,2]
[327341346,1715998246689,-241.09825197,0.00035389,2]
[327341347,1715998246698,-18956.57599022,0.00035433,2]
[327341348,1715998246707,-2262.5395,0.00035446,2]
[327341349,1715998246716,-913.0,0.00035499,20]
[327341350,1715998246725,-500.0,0.00035922,10]
[327341351,1715998246735,-4300.0,0.00035922,10]
[327341352,1715998246744,-1200.0,0.00035922,10]
[327341353,1715998246754,-800.0,0.00035922,10]
[327341354,1715998246763,-4500.0,0.00035922,10]
[327341355,1715998246773,-900.0,0.00036,37]
[327341356,1715998246782,-150.0,0.00036049,2]
[327341357,1715998246791,-354.12,0.00036145,2]
[327341358,1715998246800,-913.0,0.00036239,20]
[327341359,1715998246810,-517.78477368,0.00036274,120]
[327341360,1715998246819,-500.0,0.0003647,10]
[327341361,1715998246829,-4300.0,0.0003647,10]
[327341362,1715998246838,-800.0,0.0003647,10]
[327341363,1715998246848,-1200.0,0.0003647,10]
[327341364,1715998246858,-4500.0,0.0003647,10]
[327341365,1715998246867,-215.0,0.0003654,2]
[327341366,1715998246877,-1910.25115006,0.00036733,2]
[327341367,1715998246886,-158.04094423,0.00036733,2]
[327341368,1715998246895,-150.0,0.0003677,2]
[327341369,1715998246905,-913.0,0.00036978,20]
[327341370,1715998246915,-900.0,0.00037,38]
[327341371,1715998246926,-500.0,0.00037018,10]
[327341372,1715998246937,-4300.0,0.00037018,10]
[327341373,1715998246948,-800.0,0.00037018,10]
[327341374,1715998246958,-1200.0,0.00037018,10]
[327341375,1715998246969,-4500.0,0.00037018,10]
[327341376,1715998246979,-3944.75297171,0.00037194,10]
[327341377,1715998246989,-150.0,0.00037491,2]
[327341378,1715998246998,-500.0,0.00037566,10]
[327341379,1715998247007,-4300.0,0.00037566,10]
[327341380,1715998247016,-1200.0,0.00037566,10]
[327341381,1715998247026,-4500.0,0.00037566,10]
[327341382,1715998247035,-2471.70914707,0.000377,4]
[327341383,1715998247045,-913.0,0.00037718,20]
[327341384,1715998247054,-900.0,0.00038,39]
[327341385,1715998247064,-179.02812795,0.00038,120]
[327341386,1715998247073,-1200.0,0.00038114,10]
[327341387,1715998247082,-800.0,0.00038114,10]
[327341388,1715998247091,-170.54282699,0.00038183,2]
[327341389,1715998247101,-150.0,0.00038212,2]
[327341390,1715998247110,-215.0,0.000383,2]
[327341391,1715998247119,-154.36,0.00038356,2]
[327341392,1715998247128,-2000.0,0.000384,2]
[327341393,1715998247138,-354.12,0.00038409,2]
[327341394,1715998247147,-913.0,0.00038457,20]
[327341395,1715998247157,-500.0,0.00038662,10]
[327341396,1715998247167,-4300.0,0.00038662,10]
[327341397,1715998247176,-4500.0,0.00038662,10]
[327341398,1715998247186,-500000.0,0.000388,30]
[327341399,1715998247195,-151.0,0.000388,14]
[327341400,1715998247205,-151.0,0.000388,14]
[327341401,1715998247215,-151.0,0.000388,14]
[327341402,1715998247224,-151.0,0.000388,14]
[327341403,1715998247233,-151.0,0.000388,14]
[327341404,1715998247242,-151.0,0.000388,14]
[327341405,1715998247252,-224.909455,0.000388,14]
[327341406,1715998247261,-279.09661,0.000388,14]
[327341407,1715998247270,-151.0,0.000388,14]
[327341408,1715998247280,-151.0,0.000388,14]
[327341409,1715998247289,-151.0,0.000388,14]
[327341410,1715998247298,-151.0,0.000388,14]
[327341411,1715998247307,-151.0,0.000388,14]
[327341412,1715998247316,-151.0,0.000388,14]
[327341413,1715998247326,-151.0,0.000388,14]
[327341414,1715998247335,-151.0,0.000388,14]
[327341415,1715998247344,-151.0,0.000388,14]
[327341416,1715998247354,-151.0,0.000388,14]
[327341417,1715998247363,-8380.27774422,0.0003888,14]
[327341418,1715998247373,-884.98292591,0.000389,30]
[327341419,1715998247382,-150.0,0.00038933,2]
[327341420,1715998247391,-150000.0,0.00039,14]
[327341421,1715998247401,-900.0,0.00039,40]
[327341422,1715998247410,-151.0,0.00039,14]